Cogmind - Beta 16.1 @@@ ROGUE MODE // 2026.03.08 @ 15:52:59 Player: SunShine214 Result: Destroyed by H-66 Slayer with Gauss Rifle Performance ------------- Evolutions (4) 2000 Regions Visited (10) 2000 Robots Destroyed (102) 510 Value Destroyed (3106) 3106 Prototype IDs (6) 120 Alien Tech Used (0) 0 Bonus (665) 665 TOTAL SCORE: 8401 Bonus ------- High Alert Combat Kills 106 Entered Garrisons 200 Used RIF Installer 500 Friendly Fire -141 Cogmind --------- Core Integrity 0/850 Matter 20/300 Energy 100/100 System Corruption 14% Temperature Cool (1) Movement Flying (35) Location -6/Factory Parts ------- > --- POWER (2) -------- (None) > --- PROPULSION (3) --- VTOL Module > --- UTILITY (5) ------ System Shield System Shield > --- WEAPON (5) ------- (None) > --- INVENTORY (5) ---- VTOL Module Hardened Medium Armor Plating Sensor Drone Bay (20/20) Hypervelocity Gauss Rifle Hypervelocity Gauss Rifle Peak State ------------ > --- POWER ------------ Backup Power III Improved Deuterium Engine > --- PROPULSION ------- Armored Leg Armored Leg Armored Leg > --- UTILITY ---------- Advanced Heat Sink Improved Sensor Array Advanced Signal Interpreter System Shield System Shield > --- WEAPON ----------- Coil Gun Coil Gun Coil Gun Coil Gun Axe > --- INVENTORY -------- Hardened Medium Armor Plating Improved Light Armor Plating Sensor Drone Bay EM Pulse Cannon Improved Proton Missile Launcher [Rating: 66] Favorites ----------- Power Improved Ion Engine Engine Improved Ion Engine Power Core Light Nuclear Core Propulsion Light Treads Treads Light Treads Leg Armored Leg Flight Unit VTOL Module Utility Sensor Array Device Sensor Array Storage Medium Storage Unit Processor Signal Interpreter Hackware System Shield Protection Hardened Medium Armor Plating Weapon Coil Gun Energy Gun Cooled Pulse Rifle Energy Cannon Heavy Plasma Cannon Ballistic Gun Coil Gun Ballistic Cannon Flak Cannon Launcher Grenade Launcher Special Weapon Mining Laser Impact Weapon Mace Slashing Weapon Axe Special Melee Weapon Improved Datajack Build | -11 -10 -10 -9 -8 -7 -6 -6 -6 -6 -6 ------- Run | Yrd Mat Min Mat Mat Fac Fac Was Fac Gar Fac Slots Evolved 8 | . . . 2 2 2 2 . . . . Power 1 | . . . . . 1 . . . . . Propulsion 1 | . . . . 1 . . . . . . Utility 3 | . . . 2 1 . . . . . . Weapon 3 | . . . . . 1 2 . . . . Parts Attached 76 | 7 9 . 12 8 2 11 1 16 10 . Power 7 | 1 1 . 1 . . 1 . 1 2 . Engine 6 | 1 1 . 1 . . 1 . 1 1 . Core 1 | . . . . . . . . . 1 . Reactor . | . . . . . . . . . . . Propulsion 19 | 2 2 . 3 . 2 3 . 3 4 . Treads 4 | 2 . . 2 . . . . . . . Leg 10 | . 2 . 1 . . 3 . 3 1 . Wheel . | . . . . . . . . . . . Hover . | . . . . . . . . . . . Flight 5 | . . . . . 2 . . . 3 . Utility 17 | 2 2 . 4 2 . 3 . 4 . . Device 7 | 1 1 . 2 . . . . 3 . . Storage 3 | 1 1 . 1 . . . . . . . Processor 2 | . . . 1 . . . . 1 . . Hackware 3 | . . . . . . 3 . . . . Protection 2 | . . . . 2 . . . . . . Artifact . | . . . . . . . . . . . Weapon 33 | 2 4 . 4 6 . 4 1 8 4 . Energy Gun 7 | 1 2 . 1 1 . 2 . . . . Energy Cannon 2 | . . . . . . 2 . . . . Ballistic Gun 11 | 1 1 . 1 1 . . . 4 3 . Ballistic Cannon 1 | . . . . 1 . . . . . . Launcher 8 | . . . 1 2 . . 1 3 1 . Special Weapon 1 | . 1 . . . . . . . . . Impact Weapon 1 | . . . 1 . . . . . . . Slashing Weapon 1 | . . . . 1 . . . . . . Piercing Weapon . | . . . . . . . . . . . Special Melee Weapon 1 | . . . . . . . . 1 . . Unidentified Prototypes 6 | . . . 1 2 . 1 . 2 . . Parts Lost 42 | . 6 . 4 . 2 5 4 1 16 4 Power 6 | . 1 . 1 . . . . . 4 . Propulsion 11 | . 2 . . . 1 2 1 . 3 2 Utility 6 | . 1 . . . 1 1 . 1 1 1 Weapon 19 | . 2 . 3 . . 2 3 . 8 1 Highest Loss Streak 9 | . 3 . 2 . 1 3 4 1 9 4 To Critical Strikes 3 | . . . . . . . . . 2 1 Average Backups 6 | 1 3 8 8 9 9 5 4 4 4 5 Power . | . . . . . . . . . . . Propulsion . | . . 1 2 2 1 . . . . 1 Utility 2 | . 1 5 4 3 3 2 2 2 2 2 Weapon 2 | 1 1 2 1 4 5 3 2 1 1 2 Tool/Special . | . . . . . . . . . . . Unused Backups 9 | . . . 4 1 . . . . 1 3 Power . | . . . . . . . . . . . Propulsion 3 | . . . 3 . . . . . . . Utility 4 | . . . 1 1 . . . . 1 1 Weapon 2 | . . . . . . . . . . 2 Tool/Special . | . . . . . . . . . . . Average Slot Usage (%) 79 | . 78 100 90 89 78 61 66 90 64 44 Engine 7 | . 8 14 11 9 7 3 3 11 3 . Treads 7 | . 11 . 11 18 11 . . . . . Leg 9 | . 10 28 10 . . 10 13 18 12 6 Flight 2 | . . . . . 5 4 . . 4 13 Device 12 | . 8 14 21 18 14 6 4 11 7 . Storage 5 | . 14 14 11 9 7 . . . . . Processor 5 | . . . 3 9 7 6 6 6 6 6 Hackware 4 | . . . . . . 5 13 13 13 13 Protection 2 | . . . . 8 7 . . . . . Energy Gun 3 | . 9 . 2 . . 9 8 . . . Ballistic Gun 6 | . 11 14 8 1 . . . 19 4 4 Ballistic Cannon 1 | . . . . 7 7 . . . . . Launcher 3 | . . . 6 2 7 1 3 . 5 . Slashing Weapon 2 | . . . . 4 . 5 6 6 3 . Peak Build Rating 66 | 9 9 8 20 26 26 44 45 66 66 24 Average Rating 26 | 6 6 7 17 22 24 29 34 55 37 22 On Entrance 21 | . 9 8 8 20 24 25 44 11 66 24 Avg Prop Armor Cover (%) 11 | . . . 6 . 3 . . . 13 13 Naked Turns . | . . . . . . . . . . . Heaviest Build 49 | 15 15 13 38 49 49 31 34 42 42 3 Greatest Support 55 | 40 40 20 40 40 40 55 55 48 48 10 Greatest Overweight (x) 4 | . 4 . 1 1 2 3 . . . . Average Overweight (x) . | . . . . . 1 . . . . . Largest Inventory Capacity 10 | 8 8 8 10 10 10 10 5 5 5 5 Average Capacity 7 | 7 8 8 9 10 10 5 5 5 5 5 Most Carried 10 | 2 8 8 10 10 10 7 5 5 5 5 Average Carried 6 | 1 3 7 8 9 9 5 4 4 4 5 Final Capacity 10 | 8 8 8 10 10 10 5 5 5 5 5 Final Carried 10 | 2 8 8 10 10 8 5 4 5 5 5 Class Distribution -------------------- 54% | Mutant 16% | Scavenger-Mutant 13% | Hacker-Skirmisher 6% | Hacker-Mutant 4% | Scavenger-Skirmisher 4% | Skirmisher Dominant Class ---------------- Mutant | -10/Materials Scavenger-Mutant | -10/Mines Mutant | -9/Materials Mutant | -8/Materials Mutant | -7/Factory Scavenger-Mutant | -6/Factory Scavenger-Skirmisher | -6/Waste Hacker-Skirmisher | -6/Factory Scavenger-Mutant | -6/Garrison Hacker-Mutant | -6/Factory Resources | -11 -10 -10 -9 -8 -7 -6 -6 -6 -6 -6 ----------- Run | Yrd Mat Min Mat Mat Fac Fac Was Fac Gar Fac Matter Collected 2280 | 284 222 . 372 202 54 223 115 581 227 . Remotely . | . . . . . . . . . . . Salvage Created 3420 | 154 453 . 580 263 171 311 232 792 464 . Parts 174 | 7 26 . 40 10 4 31 . 37 19 . Haulers Intercepted 3 | . 1 . 1 . . . . 1 . . Recyclers Shooed 7 | . 3 . 1 . . 1 . 2 . . Parts Field Recycled . | . . . . . . . . . . . Retrieved Matter . | . . . . . . . . . . . Parts Self-Destructed . | . . . . . . . . . . . Prevented . | . . . . . . . . . . . Parts Restored . | . . . . . . . . . . . Kills | -11 -10 -10 -9 -8 -7 -6 -6 -6 -6 -6 ------- Run | Yrd Mat Min Mat Mat Fac Fac Was Fac Gar Fac Combat Hostiles Destroyed 65 | . 10 . 18 2 4 1 1 12 17 . Melee 3 | . . . 1 . . . . . 2 . Guns 29 | . 9 . 7 . . . 1 9 3 . Cannons 3 | . 1 . . . 1 1 . . . . AOE 29 | . . . 9 2 3 . . 3 12 . Classes Destroyed 16 | 2 6 . 3 2 . . 1 1 1 . Worker 12 | . 1 . 1 . . 5 . 5 . . Builder 6 | . . . 1 . . 4 . 1 . . Tunneler 4 | 2 . . 1 1 . . . . . . Hauler 3 | . 1 . 1 . . . . 1 . . Recycler 2 | 1 . . . 1 . . . . . . Mechanic 1 | . . . . 1 . . . . . . Operator 4 | . 1 . 1 . . 2 . . . . Watcher 5 | . 1 . 2 1 . 1 . . . . Swarmer 16 | . 2 . 5 . . . . 2 7 . Grunt 32 | . 8 . 7 . 3 . . 7 7 . Duelist 2 | . . . 2 . . . . . . . Sentry 8 | . . . 4 . 1 1 . 2 . . Specialist 2 | . . . . 2 . . . . . . Hunter 3 | . . . . . . . . . 3 . Programmer 1 | . . . . . . . . 1 . . Compactor 1 | . . . . . . . 1 . . . Best Kill Streak 13 | 2 6 . 6 3 3 5 1 13 13 . Combat Bots Only 13 | . 4 . 4 2 3 1 1 8 13 . Max Kills in Single Turn 4 | 1 1 . 3 3 1 1 1 3 4 . Gunslinging . | . . . . . . . . . . . Exploded 4 | . . . 2 2 1 . . 3 4 . Melee 1 | . . . 1 . . . . . 1 . Uniques/NPCs Destroyed . | . . . . . . . . . . . Combat | -11 -10 -10 -9 -8 -7 -6 -6 -6 -6 -6 -------- Run | Yrd Mat Min Mat Mat Fac Fac Was Fac Gar Fac Hostile Shots Fired 626 | . 78 . 66 16 46 50 4 179 166 21 Missed 216 | . 20 . 15 5 16 23 . 75 53 9 Hits 410 | . 58 . 51 11 30 27 4 104 113 12 Melee 17 | . . . 10 . . . 4 . 3 . Projectile 393 | . 58 . 41 11 30 27 . 104 110 12 Critical Strikes 12 | . . . 3 . 2 . 1 1 4 1 Damage Taken 6132 | . 672 . 846 152 382 402 216 948 2309 205 Core 1134 | . 120 . 133 . 17 86 41 97 548 92 Absorbed by Shields 20 | . . . . . . . . . 20 . Core Remaining (%) 83 | 100 . 52 66 100 97 . . . . . Volleys Fired 189 | 6 60 . 47 7 7 7 10 26 19 . Largest 4 | 2 2 . 2 2 2 2 4 4 4 . Hottest 220 | 60 120 . 120 67 67 110 220 150 156 . Shots Fired 366 | 12 90 . 65 8 13 14 26 103 35 . Gun 290 | 12 87 . 47 2 . 10 13 101 18 . Cannon 24 | . . . . 5 7 4 3 . 5 . Launcher 48 | . . . 17 1 6 . 10 2 12 . Special 4 | . 3 . 1 . . . . . . . Kinetic 211 | 6 50 . 23 6 7 . . 101 18 . Thermal 79 | . 27 . 25 . . 11 16 . . . Explosive 47 | . . . 17 1 6 . 10 2 11 . Electromagnetic 29 | 6 13 . . 1 . 3 . . 6 . Robot Hit Streak 13 | 2 13 . 11 10 4 9 9 7 9 . Robot Miss Streak 6 | 2 3 . 3 5 6 4 3 6 3 . Penetration Max 1 | . . . . . . . . 1 1 . Secondary Targets 6 | . 1 . . . . . . 5 . . Max Gunslinging Chain 1 | . 1 . . . . . . 1 . . Shots Hit Robots 264 | 6 65 . 45 11 11 24 11 62 29 . Core Hits 194 | 4 30 . 33 9 17 13 4 41 43 . Critical Kills 2 | . . . 1 . . . . 1 . . Critical Parts Destroyed 3 | . . . 1 . . . . 2 . . Critical Strikes 8 | . 3 . 2 . . . . 3 . . Burn 3 | . 3 . . . . . . . . . Destroy 4 | . . . 1 . . . . 3 . . Smash 1 | . . . 1 . . . . . . . Melee Attacks 48 | . . . 4 4 . 14 . 12 14 . Impact 6 | . . . 4 2 . . . . . . Slashing 42 | . . . . 2 . 14 . 12 14 . Piercing . | . . . . . . . . . . . Sneak Attacks 22 | . . . 2 3 . 12 . 5 . . Combat Hostiles 1 | . . . 1 . . . . . . . Follow-up Attacks . | . . . . . . . . . . . Damage Inflicted 9621 | 79 766 . 1554 454 449 1178 822 2316 2003 . Guns 3186 | 77 708 . 429 38 . 150 235 1322 227 . Cannons 390 | . . . . 79 102 125 31 . 53 . Explosions 4103 | . . . 970 137 347 . 556 658 1435 . Melee 1836 | . . . 109 200 . 903 . 336 288 . Ramming 34 | 2 10 . 22 . . . . . . . Kinetic 2404 | 12 379 . 265 97 102 . . 1322 227 . Thermal 984 | . 309 . 188 . . 221 266 . . . Explosive 4077 | . . . 970 137 347 . 556 658 1409 . Electromagnetic 286 | 65 68 . . 20 . 54 . . 79 . Impact 255 | . . . 109 146 . . . . . . Slashing 1581 | . . . . 54 . 903 . 336 288 . Piercing . | . . . . . . . . . . . Highest Corruption 14 | . . . . 5 4 1 14 14 14 14 Average Corruption 8 | . . . . 5 2 1 8 14 14 14 Corruption Purged . | . . . . . . . . . . . Corruption Blocked . | . . . . . . . . . . . Effects 68 | . . . . 14 . 4 4 26 18 2 Message Errors 20 | . . . . 5 . 2 1 7 5 . Matter Fused 14 | . . . . 2 . 2 1 5 4 . Heat Flow Errors 7 | . . . . 2 . . . 4 1 . Energy Discharges 8 | . . . . 3 . . 1 2 2 . Parts Rejected 1 | . . . . . . . . . 1 . Parts Fused 1 | . . . . . . . . . 1 . Data Loss (minor) 4 | . . . . 1 . . 1 1 1 . Data Loss (major) 4 | . . . . 1 . . . 1 1 1 Misfires 2 | . . . . . . . . 1 1 . Alerts 2 | . . . . . . . . 2 . . Misdirections 2 | . . . . . . . . 1 . 1 Weapon Failures 3 | . . . . . . . . 2 1 . Overload Shots . | . . . . . . . . . . . Overflow Damage 410 | . . . 80 110 . 99 . 103 18 . Projectiles . | . . . . . . . . . . . Explosions 35 | . . . 17 . . . . . 18 . Melee 375 | . . . 63 110 . 99 . 103 . . Knockbacks 3 | . . . . 3 . . . . . . Impact . | . . . . . . . . . . . Kinetic 3 | . . . . 3 . . . . . . Secondary . | . . . . . . . . . . . Self-Inflicted Damage 655 | . . . 95 . 20 . 49 . 491 . Shots 29 | . . . 6 . 2 . 2 . 19 . Rammed 6 | 1 3 . 2 . . . . . . . Targets Rammed 8 | 1 4 . 3 . . . . . . . Kicked 2 | . 1 . 1 . . . . . . . Crushed . | . . . . . . . . . . . Highest Temperature 357 | . 197 . 28 133 83 66 357 276 156 . Average Temperature 78 | . 66 . 6 49 39 31 194 111 76 . Received Heat Transfer 999 | . 339 . 174 . 117 36 . 225 108 . Effects 1 | . . . . . . . . 1 . . Energy Bleed 1 | . . . . . . . . 1 . . Siege Activations . | . . . . . . . . . . . Martial Activations . | . . . . . . . . . . . Shielding Activations . | . . . . . . . . . . . Robots Disrupted . | . . . . . . . . . . . Combat Hostiles . | . . . . . . . . . . . Robots Corrupted 3 | . . . 1 2 . . . . . . Combat Hostiles 1 | . . . 1 . . . . . . . Parts Fried 6 | . . . 3 3 . . . . . . Impact Corruptions 5 | . . . 2 3 . . . . . . Robots Melted . | . . . . . . . . . . . Combat Hostiles . | . . . . . . . . . . . Parts Melted 4 | . . . 1 . . 3 . . . . Heat Transferred 2430 | . 1099 . 425 . . 385 521 . . . Parts Sabotaged . | . . . . . . . . . . . Parts Stolen . | . . . . . . . . . . . Parts Stripped . | . . . . . . . . . . . Power Chain Reactions . | . . . . . . . . . . . Alert | -11 -10 -10 -9 -8 -7 -6 -6 -6 -6 -6 ------- Run | Yrd Mat Min Mat Mat Fac Fac Was Fac Gar Fac Maximum Alert Level 2 | . . . 1 . . . . 1 2 1 Low Security (%) 77 | 100 100 100 20 100 100 100 100 95 . . Level 1 15 | . . . 79 . . . . 4 20 100 Level 2 6 | . . . . . . . . . 79 . Level 3 . | . . . . . . . . . . . Level 4 . | . . . . . . . . . . . Level 5 . | . . . . . . . . . . . High Security . | . . . . . . . . . . . Max Security . | . . . . . . . . . . . Peak Influence 530 | 10 74 5 398 152 65 30 10 327 530 270 Initial 270 | . . 5 . 152 . . 1 . 223 270 Average 105 | 1 32 . 279 75 13 2 2 34 456 258 Influence Increases 2368 | 15 310 . 697 106 137 111 32 506 454 . Destroy 0b10 Robot/C 1280 | . 200 . 360 40 80 20 . 240 340 . Destroy 0b10 Robot/NC 185 | 15 20 . 35 20 . 60 . 35 . . Destroy Leader 266 | . 44 . 106 12 20 12 . 52 20 . Successful Hack 72 | . . . 7 2 . 19 . 16 28 . Disable Machine 285 | . 30 . 90 15 30 . . 120 . . Destroy Structure 220 | . 1 . 99 2 7 . 32 43 36 . Lose Combat Pursuer 60 | . 15 . . 15 . . . . 30 . Influence Decreases 2158 | 15 295 15 336 467 137 107 36 187 256 307 Entered New Map 565 | . . 10 . 209 . . 3 . 96 247 Time Decay 1267 | 15 235 5 316 258 127 97 17 177 . 20 Lost Part 316 | . 60 . 20 . 10 10 6 10 160 40 Lost Ally 10 | . . . . . . . 10 . . . Squads Dispatched 28 | . 3 . 3 1 10 7 . 4 . . Investigation 2 | . . . 1 . . . . 1 . . Extermination 4 | . . . . . 1 2 . 1 . . Reinforcement 15 | . 3 . 2 1 6 2 . 1 . . Assault . | . . . . . . . . . . . Garrison 7 | . . . . . 3 3 . 1 . . Intercept . | . . . . . . . . . . . Searches Triggered . | . . . . . . . . . . . Construction Impeded 2 | . . . 1 . 1 . . . . . Haulers Reinforced 2 | . . . . . 1 . . 1 . . Active Scanning Responses . | . . . . . . . . . . . Cargo Convoy Interrupts . | . . . . . . . . . . . Stealth | -11 -10 -10 -9 -8 -7 -6 -6 -6 -6 -6 --------- Run | Yrd Mat Min Mat Mat Fac Fac Was Fac Gar Fac Distress Signals 11 | . 2 . 2 2 3 1 . . . 1 Communications Jammed . | . . . . . . . . . . . Distress Signals . | . . . . . . . . . . . Times Spotted 110 | . 18 . 22 4 10 8 6 15 20 7 Peak Tracking Total 7 | . 5 . 5 2 4 2 5 3 7 7 Tactical Retreats 3 | . 1 . . 1 . . . . 1 . Traps | -11 -10 -10 -9 -8 -7 -6 -6 -6 -6 -6 ------- Run | Yrd Mat Min Mat Mat Fac Fac Was Fac Gar Fac Traps Triggered 11 | . 4 . 1 1 . 2 . . 3 . Indirectly . | . . . . . . . . . . . Trap Hack Attempts . | . . . . . . . . . . . Triggered . | . . . . . . . . . . . Disarmed . | . . . . . . . . . . . Reprogrammed . | . . . . . . . . . . . Reused . | . . . . . . . . . . . Traps Extracted . | . . . . . . . . . . . Installed . | . . . . . . . . . . . Triggered . | . . . . . . . . . . . Machines | -11 -10 -10 -9 -8 -7 -6 -6 -6 -6 -6 ---------- Run | Yrd Mat Min Mat Mat Fac Fac Was Fac Gar Fac Machines Disabled 19 | . 2 . 6 1 2 . . 8 . . Max in Single Turn 3 | . 1 . 2 1 1 . . 3 . . Machines Repaired . | . . . . . . . . . . . Machines Dismantled . | . . . . . . . . . . . Machines Sabotaged . | . . . . . . . . . . . Overloaded Fab Kills . | . . . . . . . . . . . Hacking | -11 -10 -10 -9 -8 -7 -6 -6 -6 -6 -6 --------- Run | Yrd Mat Min Mat Mat Fac Fac Was Fac Gar Fac Machines Accessed 19 | . 1 1 3 3 1 4 . 4 2 . Terminals 13 | . 1 . 3 1 1 4 . 1 2 . Fabricators . | . . . . . . . . . . . Repair Stations 1 | . . . . . . . . 1 . . Recycling Units 1 | . . . . 1 . . . . . . Scanalyzers 1 | . . . . 1 . . . . . . Garrison Access 2 | . . . . . . . . 2 . . Total Hacks 44 | . 1 1 5 11 3 11 . 7 5 . Successful 16 | . . 1 2 5 . 4 . 2 2 . Failed 27 | . 1 . 3 5 3 7 . 5 3 . Catastrophic 6 | . 1 . 1 1 . 1 . 1 1 . Database Lockouts 1 | . . . . 1 . . . . . . Manual 9 | . . . 1 1 3 2 . 2 . . Terminals 28 | . 1 . 5 1 3 11 . 2 5 . Fabricators . | . . . . . . . . . . . Repair Stations 2 | . . . . . . . . 2 . . Recycling Units 4 | . . . . 4 . . . . . . Scanalyzers 6 | . . . . 6 . . . . . . Garrison Access 3 | . . . . . . . . 3 . . Terminal Hacks 9 | . . 1 2 . . 4 . . 2 . Part Schematic 2 | . . . . . . 2 . . . . Open Door 1 | . . 1 . . . . . . . . Branch Access Points 2 | . . . 1 . . 1 . . . . Emergency Access Points 1 | . . . . . . . . . 1 . Unreport Threat 1 | . . . . . . 1 . . . . Transport Status 1 | . . . 1 . . . . . . . Patrol Navigation 1 | . . . . . . . . . 1 . Fabricator Hacks . | . . . . . . . . . . . Repair Station Hacks 1 | . . . . . . . . 1 . . Refit 1 | . . . . . . . . 1 . . Recycling Unit Hacks 1 | . . . . 1 . . . . . . Retrieve Components 1 | . . . . 1 . . . . . . Scanalyzer 4 | . . . . 4 . . . . . . Insert Component 1 | . . . . 1 . . . . . . Analyze 1 | . . . . 1 . . . . . . Retrieve Study 2 | . . . . 2 . . . . . . Garrison Access Hacks 1 | . . . . . . . . 1 . . Unlock Access 1 | . . . . . . . . 1 . . Unauthorized Hacks . | . . . . . . . . . . . Terminals . | . . . . . . . . . . . Fabricators . | . . . . . . . . . . . Repair Stations . | . . . . . . . . . . . Recycling Units . | . . . . . . . . . . . Scanalyzers . | . . . . . . . . . . . Garrison Access . | . . . . . . . . . . . Data Cores Recovered . | . . . . . . . . . . . Used . | . . . . . . . . . . . Hacking Detections 15 | . 1 . 2 2 1 3 . 4 2 . Full Trace Events 2 | . . . . 1 . . . 1 . . Feedback Events . | . . . . . . . . . . . Feedback Blocked 1 | . . . . . . . . 1 . . Robot Schematics Acquired . | . . . . . . . . . . . Robots Built . | . . . . . . . . . . . Authchips . | . . . . . . . . . . . Time . | . . . . . . . . . . . Total Robot Build Rating . | . . . . . . . . . . . Part Schematics Acquired 3 | . . . . 1 . 2 . . . . Parts Built . | . . . . . . . . . . . Authchips . | . . . . . . . . . . . Time . | . . . . . . . . . . . Total Part Build Rating . | . . . . . . . . . . . Part Studies Acquired 2 | . . . . 2 . . . . . . Parts Repaired . | . . . . . . . . . . . Time . | . . . . . . . . . . . Parts Recycled . | . . . . . . . . . . . Recycled Matter . | . . . . . . . . . . . Retrieved Matter . | . . . . . . . . . . . Retrieved Components 3 | . . . . 3 . . . . . . Parts Scanalyzed 1 | . . . . 1 . . . . . . Part Schematics Acquired 1 | . . . . 1 . . . . . . Parts Damaged . | . . . . . . . . . . . Bothacking | -11 -10 -10 -9 -8 -7 -6 -6 -6 -6 -6 ------------ Run | Yrd Mat Min Mat Mat Fac Fac Was Fac Gar Fac Used RIF Installer 1 | . . . . . . . . . 1 . Robots Hacked . | . . . . . . . . . . . Non-combat . | . . . . . . . . . . . Combat . | . . . . . . . . . . . Robot Hacks Applied . | . . . . . . . . . . . Relay Couplers Released . | . . . . . . . . . . . Fabnet Peak Effective % . | . . . . . . . . . . . Robots Rewired . | . . . . . . . . . . . Allies Hacked . | . . . . . . . . . . . Hacks Repelled . | . . . . . . . . . . . Allies | -11 -10 -10 -9 -8 -7 -6 -6 -6 -6 -6 -------- Run | Yrd Mat Min Mat Mat Fac Fac Was Fac Gar Fac Total Allies 1 | . . . . . . . 1 . . . Largest Group 1 | . . . . . . . 1 . . . Highest-Rated Group 31 | . . . . . . . 31 . . . Highest-Rated Ally 31 | . . . . . . . 31 . . . Total Orders 1 | . . . 1 . . . . . . . EXPLORE 1 | . . . 1 . . . . . . . Ally Attacks 12 | . . . . . . . 12 . . . Total Damage 168 | . . . . . . . 168 . . . Kills . | . . . . . . . . . . . Allies Corrupted . | . . . . . . . . . . . Allies Melted . | . . . . . . . . . . . Intel | -11 -10 -10 -9 -8 -7 -6 -6 -6 -6 -6 ------- Run | Yrd Mat Min Mat Mat Fac Fac Was Fac Gar Fac Active Infowar (turns) 4368 | 50 330 96 811 635 619 851 88 671 217 . Sensors 4154 | . 166 96 811 635 619 851 88 671 217 . Terrain 214 | 50 164 . . . . . . . . . Robot Analysis Total . | . . . . . . . . . . . Derelict Logs Recovered . | . . . . . . . . . . . Drone Launches 4 | . . . 2 2 . . . . . . Drone Recoveries 4 | . . . 2 2 . . . . . . Exploration | -11 -10 -10 -9 -8 -7 -6 -6 -6 -6 -6 ------------- Run | Yrd Mat Min Mat Mat Fac Fac Was Fac Gar Fac Turns Passed 5018 | 116 587 96 811 635 629 855 120 717 411 41 Spaces Moved 2839 | 57 270 79 294 241 228 551 110 507 402 100 Core 167 | 6 8 . . . . 11 64 73 5 . Treads 810 | 51 105 . 185 241 228 . . . . . Legs 1255 | . 157 79 109 . . 315 46 434 115 . Wheels . | . . . . . . . . . . . Hover . | . . . . . . . . . . . Flight 607 | . . . . . . 225 . . 282 100 Fastest Speed 32 | 50 100 120 120 160 240 112 50 50 42 32 Average Speed 135 | 148 136 120 178 224 267 124 79 109 64 40 Slowest Speed 320 | 160 250 120 240 240 320 200 120 120 120 42 Overloaded Moves . | . . . . . . . . . . . Propulsion Burnouts . | . . . . . . . . . . . Robots Hopped 5 | . . . . . . . . . 4 1 Potential Cave-ins . | . . . . . . . . . . . Cave-ins Triggered . | . . . . . . . . . . . Exploration Rate (%) 27 | 6 55 28 31 24 8 19 72 12 44 4 Regions Visited 10 Branch Regions 1 Pre-discovered Areas 1 | . . 1 . . . . . . . . Known Exits Taken 4 | . . . 1 1 1 . . 1 . . Unknown Exits Taken 3 | 1 1 1 . . . . . . . . Scrap Searched . | . . . . . . . . . . . Spaces Dug 6 | . . . . . . . . 6 . . Terrain Destroyed 227 | . . . 108 2 6 . 40 46 25 . Melee 6 | . . . . . . . . 6 . . Projectile 5 | . . . . . . . . 5 . . AOE 216 | . . . 108 2 6 . 40 35 25 . Terrain Rammed . | . . . . . . . . . . . Walls Destroyed . | . . . . . . . . . . . Machines Disabled . | . . . . . . . . . . . Actions | -11 -10 -10 -9 -8 -7 -6 -6 -6 -6 -6 --------- Run | Yrd Mat Min Mat Mat Fac Fac Was Fac Gar Fac Total 3555 | 72 388 80 509 318 236 680 120 572 481 99 Wait 292 | . 28 . 130 46 . 70 . 8 10 . Move 2820 | 56 270 78 293 240 227 551 109 506 392 98 Hop 5 | . . . . . . . . . 4 1 Pick Up 26 | 2 6 1 10 3 . . . 2 2 . Fast Attach 59 | 7 16 . 5 4 . 9 . 10 8 . Attach 15 | . 1 . 3 1 2 5 1 . 2 . Detach 6 | . 1 . 1 1 . 3 . . . . Swap 26 | . 3 . 6 8 . 1 . 6 2 . Drop 20 | . . 1 7 4 . 5 . 2 1 . Fire 189 | 6 60 . 47 7 7 7 10 26 19 . Melee 48 | . . . 4 4 . 14 . 12 14 . Ram . | . . . . . . . . . . . Kick 1 | . . . 1 . . . . . . . Crush 6 | 1 3 . 2 . . . . . . . Escape Stasis 42 | . . . . . . 15 . . 27 . Rewire . | . . . . . . . . . . . Trap . | . . . . . . . . . . . Miscellaneous . | . . . . . . . . . . . Route ------- -11/Scrapyard -10/Materials (discovered 3 exits: *Mat / *Min x2) -10/Mines -9/Materials (discovered 3 exits: *Mat / Min x2) -8/Materials -7/Factory -6/Factory (discovered 5 exits: [*Fac] / Low x2 / Ext x2) -6/Waste -6/Factory -6/Garrison (discovered 2 exits: *Fac x2) -6/Factory History --------- Turn | Location | Event 8 | -11/Scrapyard | Discovered new exit (range 15) 117 | -11/Scrapyard | Entered Materials 325 | -10/Materials | Build established: Mutant 353 | -10/Materials | Lost 3 parts (1n1u1w) 353 | -10/Materials | Discovered new exit (range 6) 469 | -10/Materials | Lost 3 parts (1p1n1w) 524 | -10/Materials | Discovered new exit (range 10) 605 | -10/Materials | Discovered new exit (range 15) 704 | -10/Materials | Entered Mines 705 | -10/Mines | Learned location of Storage (-7) 709 | -10/Mines | Assembled infested the area 714 | -10/Mines | Assisted by a Guerilla fighting off Assembled 760 | -10/Mines | Discovered new exit (range 16) 783 | -10/Mines | Found the Drone Emporium 789 | -10/Mines | Found Prototype Device 800 | -10/Mines | Entered Materials 800 | -9/Materials | Evolved 2 slots: Utility x2 805 | -9/Materials | Identified Sensor Drone Bay 826 | -9/Materials | Build established: Scavenger-Mutant 1196 | -9/Materials | Build established: Mutant 1309 | -9/Materials | Identified exit to Mines 1532 | -9/Materials | Discovered new exit (range 11) 1610 | -9/Materials | Identified exit to Materials 1611 | -9/Materials | Entered another Materials area 1611 | -8/Materials | Evolved 2 slots: Propulsion x1, Utility x1 1765 | -8/Materials | Central database locked down 2170 | -8/Materials | Met 7R-MNS 2207 | -8/Materials | Discovered new exit (range 16) 2241 | -8/Materials | Identified exit to Factory 2246 | -8/Materials | Entered Factory 2246 | -7/Factory | Evolved 2 slots: Power x1, Weapon x1 2247 | -7/Factory | Caught up to 7R-MNS 2477 | -7/Factory | Garrison activated, responded to threat 2843 | -7/Factory | Discovered new exit (range 13) 2872 | -7/Factory | Identified exit to Factory 2875 | -7/Factory | Entered another Factory area 2875 | -6/Factory | Evolved 2 slots: Weapon x2 2876 | -6/Factory | Caught up to 7R-MNS 3148 | -6/Factory | Garrison activated, responded to threat 3274 | -6/Factory | Lost 3 parts (1n1u1w) 3668 | -6/Factory | Identified exit to Lower Caves 3668 | -6/Factory | Identified exit to Extension 3729 | -6/Factory | Discovered new exit (range 11) 3730 | -6/Factory | Sucked down chute 3730 | -6/Factory | Entered Waste 3731 | -6/Waste | Met a frightened Derelict 3737 | -6/Waste | Spotted C-40 Crusher 3745 | -6/Waste | EMP discharged 3791 | -6/Waste | Spotted C-40 Crusher 3792 | -6/Waste | Destroyed C-40 Crusher 3793 | -6/Waste | Spotted C-40 Crusher 3809 | -6/Waste | Crushed by Compactor (1 part destroyed, 1 dropped) 3812 | -6/Waste | Crushed by Compactor (1 part destroyed, 1 dropped) 3812 | -6/Waste | Crushed by Compactor (1 part destroyed, 2 dropped) 3816 | -6/Waste | Spotted C-40 Crusher 3818 | -6/Waste | Crushed by Compactor (1 part destroyed, 1 dropped) 3818 | -6/Waste | Spotted C-40 Crusher 3839 | -6/Waste | Spotted C-40 Crusher 3843 | -6/Waste | Discovered new exit (range 13) 3845 | -6/Waste | EMP discharged 3845 | -6/Waste | System corruption reached 10% 3849 | -6/Waste | Lost 4 parts (1n3w) 3850 | -6/Waste | Identified exit to Factory 3850 | -6/Waste | Entered Factory 4290 | -6/Factory | Build established: Hacker-Skirmisher 4485 | -6/Factory | Garrison activated, responded to threat 4532 | -6/Factory | Found Prototype Launcher 4532 | -6/Factory | Identified Rocket Array 4535 | -6/Factory | Found Rocket Array 4557 | -6/Factory | Destroyed 8 combat bots 4566 | -6/Factory | Identified exit to Garrison 4567 | -6/Factory | Entered Garrison 4621 | -6/Garrison | Triggered checkpoint 4621 | -6/Garrison | Triggered checkpoint 4651 | -6/Garrison | Triggered checkpoint 4651 | -6/Garrison | Triggered checkpoint 4684 | -6/Garrison | Destroyed 13 combat bots 4703 | -6/Garrison | Lost 6 parts (3p3w) 4772 | -6/Garrison | Core integrity fell below 50% 4802 | -6/Garrison | Core integrity fell below 20% 4832 | -6/Garrison | Lost 9 parts (1p2n1u5w) 4861 | -6/Garrison | Triggered checkpoint 4880 | -6/Garrison | Discovered new exit (range 13) 4964 | -6/Garrison | Installed Relay Interface Framework 4973 | -6/Garrison | Discovered new exit (range 12) 4977 | -6/Garrison | Identified exit to Factory 4978 | -6/Garrison | Entered Factory 5019 | -6/Factory | Destroyed by H-66 Slayer with Gauss Rifle Last Messages --------------- controls... RIF authorized. LOCATION=FACTORY GOAL=ESCAPE Referencing patrol navigation protocols. 04990_ System corrupted: Substantial component data lost. 05003_ K-01 Serf collects debris. 05005_ W-25 Informer sends out distress signal. 05006_ ALERT: All DSF locations entering lockdown mode. 05009_ Critical hit (Destroy). 05009_ Autogun destroyed. 05012_ Penetrated by Slug. 05013_ Flexi-carbon Leg destroyed. 05016_ Penetrated by Slug. 05016_ VTOL Module+ destroyed. 05016_ Slug penetrates H-66 Slayer. 05016_ Slug penetrates Wall. 05016_ Adv. Signal Interpreter destroyed. Map ----- +----------------------------------------------------+ | ?????????????????????????????????????????????????? | | ?????????????????????????????????????????????????? | | ?????????????????????????????????????????????????? | | ?????????????????????????????????????????????????? | | ?????????????????????????????????????????????????? | | ?????????????????????????????????????????????????? | | ?????????????????????????????????????????????????? | | ?????????????????????????????????????????????????? | | ?????????????????????????????????????????????????? | | ?????????????????????????????????????????????????? | | ?????????????????????????????????????????????????? | | ?????????????????????????????????????????????????? | | ?????????????????????????????????????????????????? | | ?????????????????????????????????????????????????? | | ?????????????????????????????????????????????????? | | ???????????????#######???????????????????????????? | | ???????????????# +???????????????????????????? | | ???????????????# #???????????????????????????? | | ???????????????# +???????????????????????????? | | ???????????????# #???????????????????????????? | | ???????????????# #???????????????????????????? | | ???????????????# #???????????????????????????? | | ####+########### #???????????????????????????? | | #???????????????????????????? | | u #######?????????????????????? | | " h @ #?????????????????????? | | " h ##### #?????????????????????? | | " #???? #?????????????????????? | | !![########## T# #?????#?????????????????????? | | " ![ #????????#### #???????????????????????????? | | " ![ #???????????#+#???????????????????????????? | | " #?????????????????????????????????????????? | | #?????????????????????????????????????????? | | #?????????????????????????????????????????? | | #?????????????????????????????????????????? | | ## #?????????????????????????????????????????? | | ?# #?????????????????????????????????????????? | | ?# ???????????????????????????????????????? | | ?# ?????????????????????????????????????? | | ? ????????????????????????????????????? | | ?# ???????????????????????????????????? | | ?# ???????????????????????????????????? | | ?##### ???????????????????????????????????? | | ?????? ???????????????????????????????????? | | ?????? ????????????????????????????????????? | | ?????? ??????????????????????????????????????? | | ???????? ????????????????????????????????????????? | | ?????????????????????????????????????????????????? | | ?????????????????????????????????????????????????? | | ?????????????????????????????????????????????????? | +----------------------------------------------------+ Best States ------------- Heat Dissipation 56 Energy Generation 24 Energy Capacity 290 Matter Stores 300 Matter Capacity 300 Sight Range 16 Robot Scan Range 15 Terrain Scan Range 16 Terrain Scan Density 10 Armor Coverage 225 Evasion (%) 63 Recoil Reduction 2 Offensive Hacking 10 Defensive Hacking 20 Item Schematics ----------------- VTOL Module | -8/Materials | Scanalyzed Hvy. Gauss Cannon | -6/Factory | Hacked Adv. Drone Bay | -6/Factory | Hacked Robot Schematics ------------------ None Fabricated ------------ Nothing Repaired ---------- Nothing Studied --------- VTOL Module | -8/Materials | Hacked Mace | -8/Materials | Hacked Alien Tech Used ----------------- None Achievements -------------- None Challenges ------------ None Game ------ Seed MobileTeleporterJammer Manual? 0 Play Time 00:38:54 Cumulative 105.2 hours Start 2026.03.07 @ 20:11:38 End 2026.03.08 @ 15:52:59 Sessions 2 Manual Loads 0 Difficulty Rogue Special Mode None Game No. 158 Rogue 158 Adventurer 0 Explorer 0 Win Type - Total 1 Types 1/0/0/0/0/0/0/0/0/0 Lore% 50 Gallery% 51 Achievement% 37 Wizard Run 0 Options --------- Layout 1 ASCII 0 Keyboard 1 Movement Arrows Keybinds 0 Fullscreen 1 Font 24/Smallcaps Map View 50x35 Zoom Use 0% Tactical HUD 1 Map Filters NONE Filters NONE Steam 1 RUN: 38a12b0c-8953-45bf-84f4-3a2d1f796c74